[Event "2017 South African Open Ch"]
[Site "Durban"]
[Date "2017.07.22"]
[Round "11"]
[White "Wilken, Justin Barend"]
[Black "Abrantes, Persson"]
[Result "1-0"]
[ECO "B06"]
[WhiteElo "1920"]
[BlackElo "2003"]
[Annotator "NA RC"]
[PlyCount "179"]
[EventDate "2017.??.??"]
[EventCountry "RSA"]
[SourceTitle "playchess.com"]
[Source "ChessBase"]
[SourceQuality "1"]
[TimeControl "5400+30"]

1. e4 {[%emt 0:03:00]} d6 {[%emt 0:00:11]} 2. d4 {[%emt 0:00:00]} g6 {[%emt 0:00:12]} 3. Nc3 {[%emt 0:00:09]} Bg7 {[%emt 0:00:09]} 4. Be3 {[%emt 0:00:04]} Nf6 {[%emt 0:00:09]} 5. h3 {[%emt 0:00:12]} O-O {[%emt 0:01:58]} 6. Nf3 {[%emt 0:02:54]} e5 {[%emt 0:00:35]} 7. dxe5 {[%emt 0:01:11]} dxe5 {[%emt 0:00:16]} 8. Bc5 {[%emt 0:00:10] B08: Pirc Defence: Classical System} (8. Qxd8 Rxd8 9. Bc4 Nc6 10. Ng5 Rd7 11. Rd1 Nd4 12. O-O h6 13. Nxf7 Rxf7 14. Bxd4 exd4 15. Rxd4 Nd7 16. Rdd1 Nb6 {1-0 (33) Kamsky,G (2702)-Mamedov,R (2639) Baku 2010}) 8... Qxd1+ {[%emt 0:01:34]} 9. Rxd1 {[%emt 0:00:05]} Re8 {[%emt 0:00:06]} 10. Bc4 {[%emt 0:02:45]} h6 {[%emt 0:00:08]} 11. O-O {[%emt 0:00:13]} b6 $146 {[%emt 0:04:46]} ({Predecessor:} 11... Nbd7 12. Be3 c6 13. a4 Bf8 14. Nh4 Kg7 15. f4 Nb6 {0-1 (34) Siemers,J (2235)-Rostalski,W (2275) Bargteheide 1989}) 12. Ba3 {[%emt 0:01:05]} Bb7 {[%emt 0:00:45]} 13. Nd5 {[%emt 0:01:54]} (13. Nb5 $5 {[%cal Rb5c7]} Nbd7 14. Rd2 $14 (14. Nxc7 Rec8 $14)) 13... Nxd5 {[%emt 0:02:59]} 14. Bxd5 {[%emt 0:00:23]} c6 {[%emt 0:00:37]} 15. Bb3 {[%emt 0:01:13]} c5 {[%emt 0:00:14]} 16. Rfe1 {[%emt 0:01:54]} Nc6 {[%emt 0:04:35]} 17. c3 {[%emt 0:00:22]} Rad8 {[%emt 0:01:54]} 18. Bd5 {[%emt 0:00:44]} Na5 {[%emt 0:08:38]} 19. Bxb7 {[%emt 0:00:48]} Nxb7 {[%emt 0:00:08]} 20. b3 {[%emt 0:00:18]} b5 {[%emt 0:05:04]} 21. Kf1 {[%emt 0:02:04]} a5 {[%emt 0:04:19]} 22. Ke2 {[%emt 0:02:41]} b4 {[%emt 0:02:21]} 23. Bb2 {[%emt 0:00:16]} Nd6 {[%emt 0:00:07]} 24. Kf1 {[%emt 0:02:38]} Nb5 {[%emt 0:01:08]} 25. cxb4 {[%emt 0:00:32]} axb4 {[%emt 0:08:56]} 26. Rxd8 {[%emt 0:00:39]} Rxd8 {[%emt 0:00:10]} 27. Rc1 {[%emt 0:00:59]} Rc8 {[%emt 0:06:11]} 28. Nxe5 {[%emt 0:03:19]} Ra8 {[%emt 0:04:50]} 29. Rxc5 {[%emt 0:05:34]} Rxa2 {[%emt 0:00:05]} 30. Rxb5 {[%emt 0:00:13]} Rxb2 {[%emt 0:00:05]} 31. Rb8+ {[%emt 0:00:14]} Kh7 {[%emt 0:00:29]} 32. Nc6 {[%emt 0:14:29]} Rxb3 {[%emt 0:00:30]} (32... Rb1+ $1 $11 33. Ke2 Rb2+ 34. Kf3 Rxb3+ 35. Ke2 Rb2+ 36. Ke3 Rb3+ 37. Kf4 Rb2) 33. Rxb4 {[%emt 0:01:54]} Rc3 {[%emt 0:00:59]} 34. Nd8 {[%emt 0:02:07]} ({White should play} 34. Ne7 $14) 34... Rd3 {[%emt 0:01:08]} 35. Rb8 {[%emt 0:01:29]} Rd7 {[%emt 0:03:33]} 36. Nc6 {[%emt 0:01:05]} Rc7 {[%emt 0:01:50]} 37. Rb6 {[%emt 0:04:01]} Bf8 {[%emt 0:01:20]} 38. Ke2 {[%emt 0:02:46]} Bc5 {[%emt 0:00:04]} 39. Ra6 {[%emt 0:00:08]} Rb7 {[%emt 0:00:35]} 40. Ra2 $1 {[%emt 0:02:12]} Rb6 {[%emt 0:00:51]} 41. Ne5 {[%emt 0:07:42]} Re6 {[%emt 0:03:07]} 42. Nxf7 {[%emt 0:00:31]} Rxe4+ {[%emt 0:08:57]} 43. Kf1 {[%emt 0:02:40]} Re7 {[%emt 0:09:24]} 44. Nd8 {[%emt 0:00:12]} Bb4 {[%emt 0:00:18]} 45. g3 {[%emt 0:00:41]} Rd7 {[%emt 0:02:39]} 46. Nc6 {[%emt 0:02:30]} Bc5 {[%emt 0:00:43]} 47. Ne5 {[%emt 0:00:30]} Rd1+ {[%emt 0:01:04]} 48. Kg2 {[%emt 0:00:34]} g5 {[%emt 0:00:52]} 49. g4 {[%emt 0:01:00]} Rd5 {[%emt 0:00:58]} 50. Nf3 {[%emt 0:01:47]} Bb6 {[%emt 0:01:17]} 51. Rb2 {[%emt 0:04:33]} Bc5 {[%emt 0:02:11]} 52. Rd2 {[%emt 0:00:24]} Rd6 {[%emt 0:00:48]} 53. Rxd6 {[%emt 0:00:40]} Bxd6 {[%emt 0:00:01]} 54. Nd4 {[%emt 0:01:37]} Kg6 {[%emt 0:00:12]} 55. Kf3 {[%emt 0:00:20]} Bf4 $2 {[%emt 0:01:16] [#]} ({Black should try} 55... Bc7 $14) 56. Ke4 $2 {[%emt 0:00:11]} (56. h4 $1 $18 {[%mdl 512]}) 56... Bc1 {[%emt 0:00:50]} 57. Ne2 {[%emt 0:02:36]} Bb2 {[%emt 0:00:16]} 58. Ng3 {[%emt 0:00:29]} Ba1 {[%emt 0:00:11]} 59. Kd5 {[%emt 0:00:13]} Bb2 {[%emt 0:00:17]} 60. f3 {[%emt 0:04:25]} Ba1 {[%emt 0:00:36]} 61. Ke6 {[%emt 0:00:14]} Bb2 {[%emt 0:00:21]} 62. Nf5 {[%emt 0:00:27]} Ba3 {[%emt 0:01:05]} 63. Ne7+ {[%emt 0:00:37]} Kg7 {[%emt 0:00:14]} 64. Nc6 {[%emt 0:00:08]} Bb2 {[%emt 0:01:10]} 65. Kf5 {[%emt 0:00:52]} Bc3 {[%emt 0:00:22]} 66. Nd8 {[%emt 0:01:18]} Bd2 {[%emt 0:00:46]} 67. Ne6+ {[%emt 0:00:21]} Kf7 {[%emt 0:00:36]} 68. f4 {[%emt 0:00:14]} gxf4 {[%emt 0:00:12]} 69. Nxf4 {[%emt 0:00:04]} Bc1 {[%emt 0:00:46]} 70. h4 {[%emt 0:03:09]} Bd2 {[%emt 0:01:09]} 71. Nd3 $16 {[%emt 0:01:58]} Be3 {[%emt 0:01:42]} 72. Ne5+ {[%emt 0:00:13]} Kg7 {[%emt 0:00:11]} 73. h5 {[%emt 0:00:43]} Bc1 {[%emt 0:00:20]} 74. Ke6 {[%emt 0:00:07]} Bb2 {[%emt 0:00:45]} 75. Nc6 {[%emt 0:00:11]} Bc1 {[%emt 0:00:22]} 76. Ne7 {[%emt 0:00:08]} Bd2 {[%emt 0:00:35]} 77. Nf5+ {[%emt 0:00:06]} Kh7 {[%emt 0:00:14]} 78. Kf7 {[%emt 0:00:07]} Bc1 {[%emt 0:00:40]} 79. Ne7 {[%emt 0:00:33]} Ba3 {[%emt 0:02:55]} 80. Ng8 {[%emt 0:00:27]} Bc1 {[%emt 0:02:23]} 81. Nf6+ {[%emt 0:00:14]} Kh8 {[%emt 0:00:05]} 82. Kg6 {[%emt 0:00:08]} Bd2 {[%emt 0:00:36]} 83. Ne8 {[%emt 0:02:07]} Bf4 {[%emt 0:00:21]} 84. Ng7 {[%emt 0:00:13]} Bc1 {[%emt 0:00:40]} 85. Nf5 {[%emt 0:00:10]} Bd2 {[%emt 0:00:39]} 86. Nxh6 {[%emt 0:00:15]} Bc1 {[%emt 0:00:30]} 87. Nf7+ {[%emt 0:00:24]} Kg8 {[%emt 0:00:01]} 88. h6 {[%emt 0:00:17]} Bb2 {[%emt 0:00:48]} 89. h7+ {[%emt 0:00:13]} Kf8 {[%emt 0:00:01]} 90. h8=Q+ {[%emt 0:00:14]} 1-0

[Event "2017 South African Open Ch"]
[Site "Durban"]
[Date "2017.07.22"]
[Round "11"]
[White "Pesa, Mofoka A"]
[Black "Salimu, Reuben"]
[Result "1-0"]
[ECO "C65"]
[WhiteElo "1799"]
[BlackElo "1968"]
[Annotator "NA RC"]
[PlyCount "145"]
[EventDate "2017.??.??"]
[EventCountry "RSA"]
[SourceTitle "playchess.com"]
[Source "ChessBase"]
[SourceQuality "1"]
[TimeControl "5400+30"]

{[%evp 12,116,3,16,32767,32767,32767,32767,32767,4,16,20,27,15,65,50,58,32767,81,32767,79,68,32767,32767,32767,53,32767,63,32767,65,60,63,93,56,70,16,84,26,16,0,0,32767,32767,32767,32767,49,39,32767,74,32767,36,0,0,32767,32767,32767,32767,32767,32767,-95,-77,-87,-78,-93,-36,-22,-15,-39,-20,-33,-15,-62,-17,-44,-45,-46,-44,-103,32767,-123,-118,-97,-149,-176,-85,-89,-90,-127,-40,0,-26,-28,0,-79,0,32767,32767,-693,32767,32767,32767,32767,32767,-899,32767,32767,-864]} 1. e4 {[%emt 0:00:00]} e5 {[%emt 0:00:49]} 2. Nf3 {[%emt 0:00:00]} Nc6 {[%emt 0:00:09]} 3. Bb5 {[%emt 0:00:00]} Nf6 {[%emt 0:00:10]} 4. d3 {[%emt 0:00:20]} Bc5 {[%emt 0:00:21]} 5. O-O {[%emt 0:00:12]} d6 {[%emt 0:00:20]} 6. h3 {[%emt 0:00:03]} O-O {[%emt 0:00:18]} 7. c3 {[%emt 0:00:29]} a6 {[%emt 0:05:14] C65: Ruy Lopez: Berlin Defence (3...Nf6), unusual lines and 4 0-0 Bc5} 8. Ba4 {[%emt 0:00:02]} Ba7 {[%emt 0:00:37]} 9. Re1 {[%emt 0:00:32]} Ne7 {[%emt 0:01:40]} 10. Nbd2 {[%emt 0:01:16]} Ng6 {[%emt 0:00:10]} 11. Nf1 {[%emt 0:00:09]} Nh5 {[%emt 0:01:31] LiveBook: 14 Games} (11... c6 12. Ng3 {½-½ (12) Grischuk,A (2750)-Tomashevsky,E (2696) Moscow 2017}) 12. d4 {[%emt 0:01:40]} Qe7 {[%emt 0:05:06]} (12... Nhf4 $11) 13. Bc2 $146 {[%emt 0:02:11]} (13. Bg5 $5 {[%cal Rg5e7]} f6 14. Be3 $14) ({Predecessor:} 13. Be3 Ngf4 14. Ng3 Nxg3 15. fxg3 {1-0 (27) Alekseev,E (2642)-Iljiushenok,I (2491) St Petersburg 2015}) 13... Nhf4 {[%emt 0:00:56]} 14. Ng3 {[%emt 0:01:04]} Qf6 {[%emt 0:03:48]} 15. Nf5 {[%emt 0:01:51]} h6 {[%emt 0:05:09]} 16. Kh2 {[%emt 0:01:28]} Re8 {[%emt 0:03:34]} 17. Be3 {[%emt 0:04:31]} c6 {[%emt 0:11:18]} 18. Qd2 {[%emt 0:02:27]} Bb8 {[%emt 0:17:33]} 19. g3 {[%emt 0:07:39]} Ne6 {[%emt 0:12:09]} 20. dxe5 {[%emt 0:05:00]} dxe5 {[%emt 0:00:42]} 21. Rad1 {[%emt 0:00:20]} Nef8 {[%emt 0:01:25]} 22. Kg2 {[%emt 0:01:28]} Bc7 {[%emt 0:00:44]} 23. h4 {[%emt 0:02:25]} Be6 {[%emt 0:14:44] [#]} (23... Bxf5 $11 24. exf5 e4) 24. h5 {[%emt 0:02:30]} ({White should play} 24. Bc5 $1 $16) 24... Rad8 {[%emt 0:04:35]} 25. Qc1 {[%emt 0:00:58]} Ne7 {[%emt 0:01:38]} 26. g4 {[%emt 0:00:52]} Rxd1 {[%emt 0:00:26]} 27. Rxd1 {[%emt 0:00:02]} Nxf5 {[%emt 0:00:41]} 28. gxf5 {[%emt 0:01:33]} Bc8 {[%emt 0:00:37]} 29. Rg1 {[%emt 0:00:23]} Nd7 {[%emt 0:01:21]} 30. Kh1 {[%emt 0:01:25]} Kf8 {[%emt 0:00:23]} 31. c4 {[%emt 0:01:06]} Bb6 {[%emt 0:00:19]} 32. Rd1 {[%emt 0:02:02]} Bxe3 {[%emt 0:00:30]} 33. Qxe3 {[%emt 0:00:03]} Qe7 {[%emt 0:00:41]} 34. Nh2 {[%emt 0:06:23]} Nf6 {[%emt 0:01:16]} 35. Qe2 {[%emt 0:08:04]} (35. c5 $15) 35... Rd8 {[%emt 0:01:24]} 36. a3 {[%emt 0:03:06]} Rxd1+ {[%emt 0:01:12]} 37. Qxd1 {[%emt 0:00:08]} Qd7 {[%emt 0:00:14]} 38. Qxd7 $1 {[%emt 0:01:47]} Nxd7 {[%emt 0:00:19]} 39. Ng4 {[%emt 0:02:11]} f6 {[%emt 0:00:38]} 40. Kg2 {[%emt 0:01:24]} Ke7 {[%emt 0:00:09]} 41. Kf3 {[%emt 0:00:40]} Kd6 {[%emt 0:00:12]} 42. b4 {[%emt 0:01:09]} c5 {[%emt 0:00:15]} 43. Ne3 {[%emt 0:00:09]} Nb6 {[%emt 0:00:42]} 44. Bb3 {[%emt 0:00:21]} (44. Bd1 $15) 44... Bd7 {[%emt 0:00:32]} 45. Kg4 {[%emt 0:09:49]} Be8 {[%emt 0:01:13]} 46. Bd1 {[%emt 0:03:26]} Bf7 {[%emt 0:01:37]} 47. Bb3 {[%emt 0:03:11]} Kc6 {[%emt 0:01:45]} 48. b5+ {[%emt 0:01:35]} Kd6 {[%emt 0:00:02]} 49. a4 {[%emt 0:00:59] [#]} axb5 {[%emt 0:00:20]} (49... Nc8 $1 $17) 50. axb5 {[%emt 0:00:02]} Kc7 {[%emt 0:01:52]} 51. Nd5+ $1 {[%emt 0:04:52]} Bxd5 {[%emt 0:00:34]} 52. exd5 {[%emt 0:00:03]} Nc8 {[%emt 0:00:39]} 53. f4 {[%emt 0:03:42]} e4 {[%emt 0:00:19]} 54. Kg3 {[%emt 0:01:47]} (54. Bd1 $142 Nd6 55. Be2) 54... Nd6 {[%emt 0:00:25]} 55. Kf2 {[%emt 0:00:14]} Nxf5 {[%emt 0:00:58]} 56. Bc2 {[%emt 0:00:24]} Nd6 {[%emt 0:00:01]} 57. f5 $19 {[%emt 0:03:04]} Nxc4 {[%emt 0:01:38]} 58. Bxe4 {[%emt 0:00:08]} Kd6 {[%emt 0:00:32]} 59. Ke2 {[%emt 0:01:28]} Nb6 {[%emt 0:00:14]} 60. Kd3 {[%emt 0:01:25]} Ke5 {[%emt 0:00:23]} 61. d6 {[%emt 0:01:06]} c4+ {[%emt 0:00:33]} 62. Ke3 {[%emt 0:00:13]} Kxd6 {[%emt 0:00:10]} 63. Kd4 {[%emt 0:01:57]} c3 {[%emt 0:00:50]} 64. Kxc3 {[%emt 0:00:55]} Kc5 {[%emt 0:00:07]} 65. Bxb7 {[%emt 0:00:15]} Kxb5 {[%emt 0:00:06]} 66. Kd4 {[%emt 0:00:28]} Nc4 {[%emt 0:02:00]} 67. Ba6+ {[%emt 0:01:51]} Kxa6 {[%emt 0:00:07]} 68. Kxc4 {[%emt 0:00:08]} Kb6 {[%emt 0:00:06]} 69. Kd5 {[%emt 0:00:09]} Kc7 {[%emt 0:01:10]} 70. Ke6 {[%emt 0:00:06]} Kd8 {[%emt 0:00:27]} 71. Kf7 {[%emt 0:00:11]} Kd7 {[%emt 0:00:22]} 72. Kxg7 {[%emt 0:00:19]} Ke7 {[%emt 0:00:06]} 73. Kg6 {[%emt 0:00:29]} 1-0